fUSD/lending_fUSD_20250609
["ID","MTS","AMOUNT","RATE_DAILY","PERIOD"]
[365138405,1749485449695,-510.52,0.00019178,2]
[365138406,1749485449705,-16927.92,0.00019178,2]
[365138407,1749485449715,-1373.21,0.00019178,2]
[365138408,1749485449724,-732.62,0.00019178,2]
[365138409,1749485449734,-512.29,0.00019178,2]
[365138410,1749485449744,-588.01,0.00019178,2]
[365138411,1749485449753,-2697.18,0.00019178,2]
[365138412,1749485449763,-490.0,0.00019178,2]
[365138413,1749485449772,-490.0,0.00019178,2]
[365138414,1749485449782,-1154.03,0.00019178,2]
[365138415,1749485449792,-490.0,0.00019178,2]
[365138416,1749485449802,-913.21,0.00019178,2]
[365138417,1749485449811,-847.35,0.00019178,2]
[365138418,1749485449821,-490.0,0.00019178,2]
[365138419,1749485449831,-490.0,0.00019178,2]
[365138420,1749485449841,-490.0,0.00019178,2]
[365138421,1749485449851,-490.0,0.00019178,2]
[365138422,1749485449861,-490.0,0.00019178,2]
[365138423,1749485449870,-805.82,0.00019178,2]
[365138424,1749485449880,-976.18,0.00019178,2]
[365138425,1749485449889,-1176.59,0.00019178,2]
[365138426,1749485449898,-820.32,0.00019178,2]
[365138427,1749485449908,-875.36,0.00019178,2]
[365138428,1749485449917,-490.0,0.00019178,2]
[365138429,1749485449927,-490.0,0.00019178,2]
[365138430,1749485449937,-252.31582821,0.00019178,2]
[365138431,1749485449947,-490.0,0.00019178,2]
[365138432,1749485449957,-490.0,0.00019178,2]
[365138433,1749485449967,-4319.14,0.00019178,2]
[365138434,1749485449977,-684.95,0.00019178,2]
[365138435,1749485449987,-490.0,0.00019178,2]
[365138436,1749485449998,-490.0,0.00019178,2]
[365138437,1749485450008,-1577.13,0.00019178,2]
[365138438,1749485450018,-1106.72,0.00019178,2]
[365138439,1749485450028,-925.78,0.00019178,2]
[365138440,1749485450038,-538.47,0.00019178,2]
[365138441,1749485450047,-1716.71,0.00019178,2]
[365138442,1749485450057,-738.25,0.00019178,2]
[365138443,1749485450067,-552.49992192,0.00019178,2]
[365138444,1749485450077,-490.0,0.00019178,2]
[365138445,1749485450091,-1067.67,0.00019178,2]
[365138446,1749485450100,-714.53,0.00019178,2]
[365138447,1749485450110,-4423.11,0.00019178,2]
[365138448,1749485450120,-5132.19,0.00019178,2]
[365138449,1749485450131,-490.0,0.00019178,2]
[365138450,1749485450140,-490.0,0.00019178,2]
[365138451,1749485450151,-768.43,0.00019178,2]
[365138452,1749485450161,-490.0,0.00019178,2]
[365138453,1749485450171,-490.0,0.00019178,2]
[365138454,1749485450182,-649.08,0.00019178,2]
[365138455,1749485450192,-490.0,0.00019178,2]
[365138456,1749485450203,-807.54,0.00019178,2]
[365138457,1749485450213,-490.0,0.00019178,2]
[365138458,1749485450224,-1591.47,0.00019178,2]
[365138459,1749485450234,-490.0,0.00019178,2]
[365138460,1749485450244,-1833.51,0.00019178,2]
[365138461,1749485450255,-490.0,0.00019178,2]
[365138462,1749485450265,-490.0,0.00019178,2]
[365138463,1749485450275,-1309.56,0.00019178,2]
[365138464,1749485450286,-490.0,0.00019178,2]
[365138465,1749485450296,-490.0,0.00019178,2]
[365138466,1749485450306,-2475.97,0.00019178,2]
[365138467,1749485450317,-490.0,0.00019178,2]
[365138468,1749485450327,-490.0,0.00019178,2]
[365138469,1749485450338,-490.0,0.00019178,2]
[365138470,1749485450348,-490.0,0.00019178,2]
[365138471,1749485450359,-490.0,0.00019178,2]
[365138472,1749485450370,-1800.93,0.00019178,2]
[365138473,1749485450380,-498.96,0.00019178,2]
[365138474,1749485450391,-490.0,0.00019178,2]
[365138475,1749485450402,-1167.78,0.00019178,2]
[365138476,1749485450413,-1198.84,0.00019178,2]
[365138477,1749485450423,-513.66,0.00019178,2]
[365138478,1749485450434,-534.19,0.00019178,2]
[365138479,1749485450445,-1148.45,0.00019178,2]
[365138480,1749485450455,-490.0,0.00019178,2]
[365138481,1749485450470,-490.0,0.00019178,2]
[365138482,1749485450481,-490.0,0.00019178,2]
[365138483,1749485450493,-1048.94,0.00019178,2]
[365138484,1749485450504,-490.0,0.00019178,2]
[365138485,1749485450514,-535.34,0.00019178,2]
[365138486,1749485450525,-487.35,0.00019178,2]
[365138487,1749485450536,-490.0,0.00019178,2]
[365138488,1749485450545,-991.77,0.00019178,2]
[365138489,1749485450555,-490.0,0.00019178,2]
[365138490,1749485450566,-288.16207956,0.00019178,2]
[365138491,1749485451004,-201.83792044,0.00019178,2]
[365138492,1749485451015,-502.28,0.00019178,2]
[365138493,1749485451035,-203.13807956,0.00019178,2]
[365138494,1749485459430,346.07681679,0.0002465,120]
[365138495,1749485460324,514.549,0.00018,2]
[365138498,1749485655781,200.0,0.00018,2]
[365138499,1749485656160,355.526496,0.00016,2]
[365138500,1749485656928,-200.0,0.00018112,2]
[365138502,1749485717925,1242.24,0.00016567,2]
[365138509,1749485812840,200.94551981,0.00015,5]
[365138534,1749485906877,50000.0,0.00018011,2]
[365138540,1749486188584,808.89077,7.945e-05,2]
[365138541,1749486217632,836.91,0.00018523,120]
[365138542,1749486251856,203.0,0.00017381,2]
[365138544,1749486326742,-151.0,0.00018201,2]
[365138546,1749486354366,15012.0,0.00015,10]
[365138547,1749486373132,-158.3600475,0.00018122,2]
[365138549,1749486401399,210.0,0.00017381,2]
[365138550,1749486435755,151.0,0.00017716,2]
[365138551,1749486442188,462.15,0.00013699,2]
[365138554,1749486471203,-151.0,0.00018032,2]
[365138555,1749486481720,-151.0,0.00018032,2]
[365138556,1749486481776,1000.0,0.0001799,2]
[365138557,1749486486537,-158.3600475,0.00018032,2]
[365138558,1749486495745,151.0,0.00017291,2]
[365138559,1749486496149,-151.0,0.00018032,2]
[365138560,1749486498931,151.0,0.00017291,2]
[365138561,1749486499569,-31.3077415,0.00018032,2]
[365138562,1749486499594,-168.6922585,0.00018042,2]
[365138563,1749486500159,60449.64441189,0.00012,30]
[365138564,1749486512246,-131.3077415,0.00018042,2]
[365138565,1749486512269,-92.50031016,0.00018052,2]
[365138566,1749486518740,1981.249999,0.000151,2]
[365138568,1749486520942,1552.76762973,0.00015,30]
[365138569,1749486521258,211.0,0.00017381,2]
[365138570,1749486523042,227.64790799,0.00013699,30]
[365138571,1749486527931,-207.19194834,0.00018052,2]
[365138572,1749486551605,207.19194,0.00017381,2]
[365138580,1749486612448,204.0,0.00017673,2]
[365138581,1749486620095,161.3549449,0.00018007,2]
[365138597,1749486632139,-453.89897846,0.00018052,2]
[365138598,1749486632172,-9.20876304,0.00018052,2]
[365138599,1749486632182,-250.0,0.00018079,2]
[365138600,1749486632192,-240.79123696,0.00018079,2]
[365138601,1749486632204,-59.20876304,0.00018079,2]
[365138602,1749486632214,-300.0,0.00018107,2]
[365138603,1749486632224,-300.0,0.00018122,2]
[365138604,1749486632235,-108.8099525,0.00018122,2]
[365138605,1749486632245,-158.3600475,0.00018128,2]
[365138606,1749486632255,-300.0,0.000182,2]
[365138607,1749486632264,-1200.0,0.000182,2]
[365138608,1749486632274,-300.0,0.000182,2]
[365138609,1749486632283,-23749.0,0.00018201,2]
[365138610,1749486632293,-447.64,0.00018229,2]
[365138611,1749486632302,-903.78,0.00018265,2]
[365138612,1749486632312,-200.0,0.00018291,2]
[365138613,1749486632322,-250.0,0.00018461,2]
[365138614,1749486632331,-164.3,0.00018509,2]
[365138615,1749486632341,-500.0,0.00018523,2]
[365138616,1749486632351,-167.56,0.00018547,2]
[365138617,1749486632360,-1770.92,0.00018547,2]
[365138618,1749486632370,-250.0,0.00018708,2]
[365138619,1749486632379,-1242.24,0.00018831,2]
[365138620,1749486632389,-204.0,0.00018882,3]
[365138621,1749486632399,-267.07661771,0.000189,2]
[365138622,1749486632409,-207.4,0.00018989,2]
[365138623,1749486632418,-55174.43081126,0.00019,2]
[365138624,1749486632430,-16257.80290274,0.00019,2]
[365138625,1749486632440,-250.0,0.00019,2]
[365138626,1749486632450,-213.81846587,0.00019078,3]
[365138627,1749486632459,-534.125,0.00019078,2]
[365138628,1749486632469,-324.06178366,0.00019078,2]
[365138629,1749486632480,-574.7391127,0.00019078,2]
[365138630,1749486632490,-1399.39434586,0.00019078,2]
[365138631,1749486632499,-2107.65318984,0.00019078,2]
[365138632,1749486632512,-1326.34181016,0.00019078,2]
[365138633,1749486632521,-14302.10635272,0.00019078,2]
[365138634,1749486632537,-17561.11204728,0.00019078,2]
[365138635,1749486632547,-324.06178362,0.00019133,2]
[365138637,1749486632556,-151.83,0.00019164,2]
[365138639,1749486632565,-151.83,0.00019164,2]
[365138641,1749486632575,-151.83,0.00019164,2]
[365138643,1749486632585,-151.83,0.00019164,2]
[365138644,1749486632594,-151.83,0.00019164,2]
[365138645,1749486632604,-151.0,0.00019166,2]
[365138646,1749486632613,-1000.0,0.00019166,2]
[365138647,1749486632623,-18200.96783253,0.00019167,2]
[365138648,1749486632637,-151.83,0.00019168,2]
[365138649,1749486632648,-500.0,0.00019173,2]
[365138650,1749486632658,-500.0,0.00019173,2]
[365138651,1749486632668,-12215.7017902,0.00019173,4]
[365138652,1749486632678,-66355.37208545,0.00019174,4]
[365138653,1749486632690,-2697.319625,0.00019174,4]
[365138654,1749486632702,-888.86398066,0.00019174,4]
[365138656,1749486632718,-108032.52101953,0.00019174,4]
[365138658,1749486632731,-611814.93100061,0.00019174,4]
[365138661,1749486632744,-4563.37057016,0.00019174,4]
[365138662,1749486632756,-1744.3339651,0.00019174,4]
[365138665,1749486633237,-500.0,0.00019172,2]
[365138666,1749486633247,-245.74916338,0.00019172,2]
[365138667,1749486633259,-254.25083662,0.00019172,2]
[365138668,1749486633269,-500.0,0.00019172,2]
[365138669,1749486633279,-29.16931419,0.00019172,2]
[365138675,1749486638034,-470.83068581,0.00019172,2]
[365138676,1749486638045,-500.0,0.00019172,2]
[365138677,1749486638054,-80.91781875,0.00019172,2]
[365138678,1749486638088,-419.08218125,0.00019172,2]
[365138679,1749486638098,-520.54099775,0.00019172,2]
[365138680,1749486638108,-500.0,0.00019172,2]
[365138681,1749486638117,-500.0,0.00019172,2]
[365138682,1749486638127,-276.58388989,0.00019172,2]
[365138683,1749486638137,-500.0,0.00019172,2]
[365138684,1749486638147,-500.0,0.00019172,2]
[365138685,1749486638156,-500.0,0.00019172,2]
[365138686,1749486638166,-500.0,0.00019172,2]
[365138687,1749486638176,-500.0,0.00019172,2]
[365138688,1749486638185,-500.0,0.00019172,2]
[365138689,1749486638195,-500.0,0.00019172,2]
[365138690,1749486638204,-500.0,0.00019172,2]
[365138691,1749486638214,-500.0,0.00019172,2]
[365138692,1749486638224,-20354.93343112,0.00019174,4]
[365138693,1749486638236,-1984.89514065,0.00019174,4]
[365138694,1749486638269,-40424.12875775,0.00019174,4]
[365138695,1749486638281,-3347.96100243,0.00019174,4]
[365138743,1749486640314,-2976762.64299909,0.00019174,4]
[365138744,1749486640324,-304926.7285497,0.00019174,2]
[365138745,1749486640334,-21257.2437775,0.00019174,2]
[365138746,1749486640343,-290.93116033,0.00019178,2]
[365138747,1749486640352,-3000.0,0.00019178,2]
[365138748,1749486640360,-490.0,0.00019178,2]
[365138749,1749486640369,-490.0,0.00019178,2]
[365138750,1749486640379,-490.0,0.00019178,2]
[365138751,1749486640389,-490.0,0.00019178,2]
[365138752,1749486640399,-490.0,0.00019178,2]
[365138753,1749486640409,-490.0,0.00019178,2]
[365138754,1749486640497,-250.0,0.00019178,2]
[365138755,1749486640507,-490.0,0.00019178,2]
[365138756,1749486640517,-490.0,0.00019178,2]
[365138757,1749486640527,-490.0,0.00019178,2]
[365138758,1749486640538,-478.46136273,0.00019178,2]
[365138759,1749486640548,-490.0,0.00019178,2]
[365138760,1749486640558,-490.0,0.00019178,2]
[365138761,1749486640569,-490.0,0.00019178,2]
[365138762,1749486640579,-490.0,0.00019178,2]
[365138763,1749486640589,-490.0,0.00019178,2]
[365138764,1749486640599,-490.63360034,0.00019178,2]
[365138765,1749486640608,-490.0,0.00019178,2]
[365138766,1749486640618,-490.0,0.00019178,2]
[365138767,1749486640628,-490.0,0.00019178,2]
[365138768,1749486640638,-490.0,0.00019178,2]
[365138769,1749486640649,-490.0,0.00019178,2]
[365138770,1749486640659,-490.0,0.00019178,2]
[365138771,1749486640669,-490.0,0.00019178,2]
[365138772,1749486640678,-490.0,0.00019178,2]
[365138773,1749486640688,-490.0,0.00019178,2]
[365138774,1749486640697,-490.0,0.00019178,2]
[365138775,1749486640707,-490.0,0.00019178,2]
[365138776,1749486640716,-490.0,0.00019178,2]
[365138777,1749486640726,-490.0,0.00019178,2]
[365138778,1749486640736,-490.0,0.00019178,2]
[365138779,1749486640746,-490.0,0.00019178,2]
[365138780,1749486640755,-490.0,0.00019178,2]
[365138781,1749486640765,-490.0,0.00019178,2]
[365138782,1749486640774,-490.0,0.00019178,2]
[365138783,1749486640784,-490.0,0.00019178,2]
[365138784,1749486640793,-202.69815683,0.00019178,2]
[365138785,1749486640802,-490.0,0.00019178,2]
[365138786,1749486640812,-490.0,0.00019178,2]
[365138787,1749486640821,-490.0,0.00019178,2]
[365138788,1749486640831,-617.95,0.00019178,2]
[365138789,1749486640840,-490.0,0.00019178,2]
[365138790,1749486640851,-490.0,0.00019178,2]
[365138791,1749486640862,-490.0,0.00019178,2]
[365138792,1749486640871,-490.0,0.00019178,2]
[365138793,1749486640881,-490.0,0.00019178,2]
[365138794,1749486640890,-490.0,0.00019178,2]
[365138795,1749486640901,-958.41,0.00019178,2]
[365138796,1749486640911,-490.0,0.00019178,2]
[365138797,1749486640920,-490.0,0.00019178,2]
[365138798,1749486640932,-493.53,0.00019178,2]
[365138799,1749486640941,-490.0,0.00019178,2]
[365138800,1749486640950,-655.45,0.00019178,2]
[365138801,1749486640959,-544.8,0.00019178,2]
[365138802,1749486640968,-239.33724239,0.00019178,2]
[365138803,1749486640977,-518.20378479,0.00019178,2]
[365138804,1749486640986,-490.0,0.00019178,2]
[365138805,1749486640996,-490.0,0.00019178,2]
[365138806,1749486641004,-490.0,0.00019178,2]
[365138807,1749486641012,-562.05,0.00019178,2]
[365138808,1749486641021,-490.0,0.00019178,2]
[365138809,1749486641030,-490.0,0.00019178,2]
[365138810,1749486641038,-490.0,0.00019178,2]
[365138811,1749486641047,-490.0,0.00019178,2]
[365138812,1749486641055,-490.0,0.00019178,2]
[365138813,1749486641063,-511.1,0.00019178,2]
[365138814,1749486641071,-490.0,0.00019178,2]
[365138815,1749486641079,-881.53,0.00019178,2]
[365138816,1749486641087,-490.0,0.00019178,2]
[365138817,1749486641095,-490.0,0.00019178,2]
[365138818,1749486641104,-490.0,0.00019178,2]
[365138819,1749486641112,-490.0,0.00019178,2]
[365138820,1749486641120,-490.0,0.00019178,2]
[365138821,1749486641128,-490.0,0.00019178,2]
[365138822,1749486641137,-490.0,0.00019178,2]
[365138823,1749486641147,-490.0,0.00019178,2]
[365138824,1749486641155,-490.0,0.00019178,2]
[365138825,1749486641163,-490.0,0.00019178,2]
[365138826,1749486641171,-490.0,0.00019178,2]
[365138827,1749486641180,-490.0,0.00019178,2]
[365138828,1749486641188,-490.0,0.00019178,2]
[365138829,1749486641198,-490.0,0.00019178,2]
[365138830,1749486641207,-490.0,0.00019178,2]
[365138831,1749486641216,-490.0,0.00019178,2]
[365138832,1749486641225,-655.0,0.00019178,2]
[365138833,1749486641234,-490.0,0.00019178,2]
[365138834,1749486641244,-263.76350653,0.00019178,2]
[365138835,1749486641253,-490.0,0.00019178,2]
[365138836,1749486641263,-490.0,0.00019178,2]
[365138837,1749486641273,-490.0,0.00019178,2]
[365138838,1749486641282,-490.0,0.00019178,2]
[365138839,1749486641291,-490.0,0.00019178,2]
[365138840,1749486641301,-490.0,0.00019178,2]
[365138841,1749486641311,-490.0,0.00019178,2]
[365138842,1749486641320,-490.0,0.00019178,2]
[365138843,1749486641329,-490.0,0.00019178,2]
[365138844,1749486641338,-490.0,0.00019178,2]
[365138845,1749486641347,-944.22,0.00019178,2]
[365138846,1749486641357,-1154.45,0.00019178,2]
[365138847,1749486641366,-490.0,0.00019178,2]
[365138848,1749486641375,-506.49,0.00019178,2]
[365138849,1749486641385,-490.0,0.00019178,2]
[365138850,1749486641396,-490.0,0.00019178,2]
[365138851,1749486641406,-490.0,0.00019178,2]
[365138852,1749486641416,-732.75,0.00019178,2]
[365138853,1749486641425,-648.67,0.00019178,2]
[365138854,1749486641436,-490.0,0.00019178,2]
[365138855,1749486641445,-1260.51,0.00019178,2]
[365138856,1749486641455,-490.0,0.00019178,2]
[365138857,1749486641464,-510.76,0.00019178,2]
[365138858,1749486641473,-490.0,0.00019178,2]
[365138859,1749486641483,-714.69,0.00019178,2]
[365138860,1749486641494,-490.0,0.00019178,2]
[365138861,1749486641504,-490.0,0.00019178,2]
[365138862,1749486641514,-490.0,0.00019178,2]
[365138863,1749486641523,-451.35300369,0.00019178,2]
[365138864,1749486641533,-453.70734375,0.00019178,2]
[365138865,1749486641543,-490.0,0.00019178,2]
[365138866,1749486641552,-1036.62,0.00019178,2]
[365138867,1749486641562,-1159.46,0.00019178,2]
[365138868,1749486641571,-597.03,0.00019178,2]
[365138869,1749486641581,-490.0,0.00019178,2]
[365138870,1749486641590,-490.0,0.00019178,2]
[365138871,1749486641600,-490.0,0.00019178,2]
[365138872,1749486641610,-1053.48,0.00019178,2]
[365138873,1749486641620,-490.0,0.00019178,2]
[365138874,1749486641629,-546.9,0.00019178,2]
[365138875,1749486641639,-490.0,0.00019178,2]
[365138876,1749486641649,-538.69,0.00019178,2]
[365138877,1749486641659,-772.24,0.00019178,2]
[365138878,1749486641668,-624.4,0.00019178,2]
[365138879,1749486641678,-490.0,0.00019178,2]
[365138880,1749486641687,-490.0,0.00019178,2]
[365138881,1749486641697,-1314.05,0.00019178,2]
[365138882,1749486641707,-195.00376144,0.00019178,2]
[365138883,1749486641716,-490.0,0.00019178,2]
[365138884,1749486641726,-791.1,0.00019178,2]
[365138885,1749486641736,-599.19271834,0.00019178,2]
[365138886,1749486641747,-797.34,0.00019178,2]
[365138887,1749486641757,-490.0,0.00019178,2]
[365138888,1749486641767,-490.0,0.00019178,2]
[365138889,1749486641777,-555.04,0.00019178,2]
[365138890,1749486641787,-893.02,0.00019178,2]
[365138891,1749486641796,-972.42,0.00019178,2]
[365138892,1749486641805,-490.0,0.00019178,2]
[365138893,1749486641815,-490.0,0.00019178,2]
[365138894,1749486641825,-825.92,0.00019178,2]
[365138895,1749486641834,-457.65197885,0.00019178,2]
[365138896,1749486641843,-671.83,0.00019178,2]
[365138897,1749486641854,-571.5,0.00019178,2]
[365138898,1749486641865,-708.33,0.00019178,2]
[365138899,1749486641874,-490.0,0.00019178,2]
[365138900,1749486641884,-490.0,0.00019178,2]
[365138901,1749486641893,-498.23,0.00019178,2]
[365138902,1749486641903,-1171.99,0.00019178,2]
[365138903,1749486641913,-672.36,0.00019178,2]
[365138904,1749486641922,-490.0,0.00019178,2]
[365138905,1749486641932,-490.0,0.00019178,2]
[365138906,1749486641941,-490.0,0.00019178,2]
[365138907,1749486641950,-490.0,0.00019178,2]
[365138908,1749486641959,-707.74,0.00019178,2]
[365138909,1749486641969,-1287.45,0.00019178,2]
[365138910,1749486641978,-206.22743202,0.00019178,2]
[365138911,1749486641988,-490.0,0.00019178,2]
[365138912,1749486641998,-490.0,0.00019178,2]
[365138913,1749486642007,-490.0,0.00019178,2]
[365138914,1749486642017,-740.35,0.00019178,2]
[365138915,1749486642026,-490.0,0.00019178,2]
[365138916,1749486642035,-634.48,0.00019178,2]
[365138917,1749486642044,-490.0,0.00019178,2]
[365138918,1749486642053,-490.0,0.00019178,2]
[365138919,1749486642063,-490.0,0.00019178,2]
[365138920,1749486642072,-951.19,0.00019178,2]
[365138921,1749486642082,-516.27,0.00019178,2]
[365138922,1749486642091,-490.0,0.00019178,2]
[365138923,1749486642100,-490.0,0.00019178,2]
[365138924,1749486642110,-153.31097569,0.00019178,2]
[365138925,1749486642118,-686.55,0.00019178,2]
[365138926,1749486642127,-1212.24,0.00019178,2]
[365138927,1749486642135,-569.87,0.00019178,2]
[365138928,1749486642145,-479.21221367,0.00019178,2]
[365138929,1749486642154,-490.0,0.00019178,2]
[365138930,1749486642162,-490.0,0.00019178,2]
[365138931,1749486642170,-490.0,0.00019178,2]
[365138932,1749486642179,-532.53,0.00019178,2]
[365138933,1749486642188,-559.27,0.00019178,2]
[365138934,1749486642196,-366.59940288,0.00019178,2]
[365138935,1749486642205,-614.72,0.00019178,2]
[365138936,1749486642213,-747.67,0.00019178,2]
[365138937,1749486642221,-632.24,0.00019178,2]
[365138938,1749486642229,-490.0,0.00019178,2]
[365138939,1749486642238,-490.0,0.00019178,2]
[365138940,1749486642247,-689.74,0.00019178,2]
[365138941,1749486642255,-490.0,0.00019178,2]
[365138942,1749486642264,-490.0,0.00019178,2]
[365138943,1749486642273,-528.46,0.00019178,2]
[365138944,1749486642282,-552.66,0.00019178,2]
[365138945,1749486642290,-1000.0,0.00019178,2]
[365138946,1749486642299,-490.0,0.00019178,2]
[365138947,1749486642307,-490.0,0.00019178,2]
[365138948,1749486642315,-1325.04,0.00019178,2]
[365138949,1749486642324,-490.0,0.00019178,2]
[365138950,1749486642332,-490.0,0.00019178,2]
[365138951,1749486642341,-490.0,0.00019178,2]
[365138952,1749486642349,-490.0,0.00019178,2]
[365138953,1749486642357,-490.0,0.00019178,2]
[365138954,1749486642365,-499.03,0.00019178,2]
[365138955,1749486642374,-1359.31,0.00019178,2]
[365138956,1749486642382,-618.22,0.00019178,2]
[365138957,1749486642390,-1503.14,0.00019178,2]
[365138958,1749486642399,-604.64,0.00019178,2]
[365138959,1749486642407,-490.0,0.00019178,2]
[365138960,1749486642415,-490.0,0.00019178,2]
[365138961,1749486642424,-490.0,0.00019178,2]
[365138962,1749486642433,-1775.0,0.00019178,2]
[365138963,1749486642441,-490.0,0.00019178,2]
[365138964,1749486642448,-490.0,0.00019178,2]
[365138965,1749486642455,-582.66,0.00019178,2]
[365138966,1749486642461,-189.71472202,0.00019178,2]
[365138967,1749486642468,-739.7,0.00019178,2]
[365138968,1749486642475,-490.0,0.00019178,2]
[365138969,1749486642481,-411.307752,0.00019178,2]
[365138970,1749486642488,-411.307752,0.00019178,2]
[365138971,1749486642495,-399.75033964,0.00019178,2]
[365138972,1749486642502,-490.0,0.00019178,2]
[365138973,1749486642509,-654.8,0.00019178,2]
[365138974,1749486642516,-490.0,0.00019178,2]
[365138975,1749486642523,-527.9,0.00019178,2]
[365138976,1749486642530,-621.71,0.00019178,2]
[365138977,1749486642538,-490.0,0.00019178,2]
[365138978,1749486642545,-1957.49,0.00019178,2]
[365138979,1749486642553,-1150.1,0.00019178,2]
[365138980,1749486642562,-490.0,0.00019178,2]
[365138981,1749486642572,-522.44,0.00019178,2]
[365138982,1749486642581,-490.0,0.00019178,2]
[365138983,1749486642590,-896.57,0.00019178,2]
[365138984,1749486642599,-572.65,0.00019178,2]
[365138985,1749486642608,-490.0,0.00019178,2]
[365138986,1749486642617,-201.61021869,0.00019178,2]
[365138987,1749486642626,-490.0,0.00019178,2]
[365138988,1749486642635,-708.5,0.00019178,2]
[365138989,1749486642644,-2545.89,0.00019178,2]
[365138990,1749486642653,-490.0,0.00019178,2]
[365138991,1749486642663,-1549.19,0.00019178,2]
[365138992,1749486642671,-639.01,0.00019178,2]
[365138993,1749486642681,-466.78132379,0.00019178,2]
[365138994,1749486642690,-547.33,0.00019178,2]
[365138995,1749486642699,-875.24,0.00019178,2]
[365138996,1749486642709,-490.0,0.00019178,2]
[365138997,1749486642718,-1000.0,0.00019178,2]
[365138998,1749486642727,-490.0,0.00019178,2]
[365138999,1749486642736,-490.0,0.00019178,2]
[365139000,1749486642746,-564.79,0.00019178,2]
[365139001,1749486642756,-490.0,0.00019178,2]
[365139002,1749486642765,-702.75,0.00019178,2]
[365139003,1749486642774,-412.69353731,0.00019178,2]
[365139004,1749486642783,-490.0,0.00019178,2]
[365139005,1749486642793,-844.49,0.00019178,2]
[365139006,1749486642803,-665.4,0.00019178,2]
[365139007,1749486642814,-490.0,0.00019178,2]
[365139008,1749486642825,-490.0,0.00019178,2]
[365139009,1749486642834,-490.0,0.00019178,2]
[365139010,1749486642844,-713.17,0.00019178,2]
[365139011,1749486642856,-614.74,0.00019178,2]
[365139012,1749486642866,-255.71176165,0.00019178,2]
[365139013,1749486642876,-1094.42,0.00019178,2]
[365139014,1749486642885,-490.0,0.00019178,2]
[365139015,1749486642895,-490.0,0.00019178,2]
[365139016,1749486642904,-490.0,0.00019178,2]
[365139017,1749486642914,-490.0,0.00019178,2]
[365139018,1749486642923,-1315.99,0.00019178,2]
[365139020,1749486642934,-604.24,0.00019178,2]
[365139023,1749486642944,-490.0,0.00019178,2]
[365139025,1749486642953,-17113.53,0.00019178,2]
[365139028,1749486642963,-490.0,0.00019178,2]
[365139032,1749486642972,-883.44,0.00019178,2]
[365139035,1749486642982,-1905.84,0.00019178,2]
[365139038,1749486642992,-1166.68,0.00019178,2]
[365139039,1749486643002,-1166.54,0.00019178,2]
[365139043,1749486643011,-1157.92,0.00019178,2]
[365139047,1749486643022,-490.0,0.00019178,2]
[365139050,1749486643031,-490.0,0.00019178,2]
[365139052,1749486643041,-490.0,0.00019178,2]
[365139054,1749486643050,-490.0,0.00019178,2]
[365139056,1749486643060,-2189.34,0.00019178,2]